[Event "Early-Titled-Tuesday-Blitz-March-19-2024"]
[Site "Chess.com"]
[Date "2024.03.19"]
[Round "5"]
[White "Alexchess1984"]
[Black "Zavgorodniy_Sergiy"]
[Result "1/2-1/2"]
[WhiteElo "2761"]
[BlackElo "2626"]
[TimeControl "180+1"]
[EndTime "8:56:32 PDT"]
[Termination "Game drawn by agreement"]

1. e4 {[%clk 0:03:00.9]} 1... c6 {[%clk 0:03:00.2]} 2. d4 {[%clk 0:02:59.6]}
2... d5 {[%clk 0:03:01.1]} 3. exd5 {[%clk 0:03:00]} 3... cxd5 {[%clk 0:03:02]}
4. c4 {[%clk 0:03:00.3]} 4... Nf6 {[%clk 0:03:02.3]} 5. Nc3 {[%clk 0:03:00.4]}
5... e6 {[%clk 0:03:02.9]} 6. Nf3 {[%clk 0:02:58.7]} 6... Be7 {[%clk 0:03:03.1]}
7. Bd3 {[%clk 0:02:57.7]} 7... O-O {[%clk 0:03:01.1]} 8. cxd5 {[%clk 0:02:57]}
8... Nxd5 {[%clk 0:03:00.9]} 9. O-O {[%clk 0:02:54.8]} 9... Nc6 {[%clk
0:03:00.6]} 10. a3 {[%clk 0:02:53.5]} 10... Bf6 {[%clk 0:02:57.9]} 11. Bc2
{[%clk 0:02:46.4]} 11... g6 {[%clk 0:02:52.3]} 12. Qd3 {[%clk 0:02:39.7]} 12...
Nce7 {[%clk 0:02:49.6]} 13. h4 {[%clk 0:02:36.7]} 13... b6 {[%clk 0:02:45.4]}
14. Ne4 {[%clk 0:02:34.1]} 14... Bg7 {[%clk 0:02:44.7]} 15. h5 {[%clk
0:02:32.2]} 15... Nf5 {[%clk 0:02:44.8]} 16. Bg5 {[%clk 0:02:21.9]} 16... f6
{[%clk 0:02:30.2]} 17. Bd2 {[%clk 0:02:19.2]} 17... Bb7 {[%clk 0:02:29.2]} 18.
hxg6 {[%clk 0:02:09]} 18... hxg6 {[%clk 0:02:30.1]} 19. Ng3 {[%clk 0:02:05.4]}
19... Kf7 {[%clk 0:02:26.7]} 20. Rfe1 {[%clk 0:01:38.8]} 20... Qd7 {[%clk
0:02:24.1]} 21. Re2 {[%clk 0:01:33.6]} 21... Rae8 {[%clk 0:02:22.5]} 22. Rae1
{[%clk 0:01:31.1]} 22... Rh8 {[%clk 0:02:21.3]} 23. Ne4 {[%clk 0:01:27]} 23...
Kg8 {[%clk 0:02:11.2]} 24. b4 {[%clk 0:01:16.5]} 24... g5 {[%clk 0:02:08.1]} 25.
Ng3 {[%clk 0:01:14]} 25... Nxg3 {[%clk 0:01:54.5]} 26. fxg3 {[%clk 0:01:14.9]}
26... Qd6 {[%clk 0:01:53.3]} 27. Kf2 {[%clk 0:01:09.9]} 27... Re7 {[%clk
0:01:40.8]} 28. Qg6 {[%clk 0:00:56.6]} 28... Rh6 {[%clk 0:01:35.6]} 29. Qd3
{[%clk 0:00:56.1]} 29... Rh8 {[%clk 0:01:33.7]} 30. Bb3 {[%clk 0:00:45.3]} 30...
Kf7 {[%clk 0:01:26.8]} 31. Kg1 {[%clk 0:00:40.7]} 31... Kg8 {[%clk 0:01:13.5]}
32. Qg6 {[%clk 0:00:36.3]} 32... Rh6 {[%clk 0:01:08.8]} 33. Qd3 {[%clk
0:00:36.1]} 33... Rh8 {[%clk 0:01:01.3]} 34. Kf2 {[%clk 0:00:24.5]} 34... Rh6
{[%clk 0:01:00.3]} 35. a4 {[%clk 0:00:18.1]} 35... a6 {[%clk 0:00:58.2]} 36. b5
{[%clk 0:00:15.2]} 36... a5 {[%clk 0:00:58.3]} 37. Bc2 {[%clk 0:00:10.5]}
1/2-1/2

[Event "Early-Titled-Tuesday-Blitz-March-19-2024"]
[Site "Chess.com"]
[Date "2024.03.19"]
[Round "5"]
[White "SamCopeland"]
[Black "Ural_bogatyr"]
[Result "0-1"]
[WhiteElo "2364"]
[BlackElo "2600"]
[TimeControl "180+1"]
[EndTime "8:56:37 PDT"]
[Termination "Ural_bogatyr won by resignation"]

1. e4 {[%clk 0:03:00.9]} 1... e5 {[%clk 0:02:57.2]} 2. Nf3 {[%clk 0:03:00.2]}
2... Nc6 {[%clk 0:02:55.8]} 3. Bc4 {[%clk 0:02:59.4]} 3... Bc5 {[%clk
0:02:52.1]} 4. c3 {[%clk 0:02:56.6]} 4... Nf6 {[%clk 0:02:43.2]} 5. d4 {[%clk
0:02:55.3]} 5... exd4 {[%clk 0:02:42.3]} 6. e5 {[%clk 0:02:55.1]} 6... d5 {[%clk
0:02:42.2]} 7. Bb5 {[%clk 0:02:54]} 7... Ne4 {[%clk 0:02:41.4]} 8. cxd4 {[%clk
0:02:53.8]} 8... Bb4+ {[%clk 0:02:34.3]} 9. Bd2 {[%clk 0:02:35.8]} 9... Nxd2
{[%clk 0:02:29.2]} 10. Nbxd2 {[%clk 0:02:34.8]} 10... O-O {[%clk 0:02:29.8]} 11.
O-O {[%clk 0:02:24.6]} 11... Ne7 {[%clk 0:02:27.4]} 12. a3 {[%clk 0:02:16.6]}
12... Ba5 {[%clk 0:02:27]} 13. b4 {[%clk 0:02:16.1]} 13... Bb6 {[%clk
0:02:26.8]} 14. Nb3 {[%clk 0:02:15.7]} 14... c6 {[%clk 0:02:26.2]} 15. Be2
{[%clk 0:02:13.2]} 15... Bf5 {[%clk 0:02:23.5]} 16. Nh4 {[%clk 0:02:00.8]} 16...
a5 {[%clk 0:02:18.1]} 17. Nc5 {[%clk 0:01:56.2]} 17... Qc7 {[%clk 0:02:03]} 18.
Bg4 {[%clk 0:01:41.4]} 18... Bc8 {[%clk 0:01:37.7]} 19. f4 {[%clk 0:01:33.2]}
19... axb4 {[%clk 0:01:37.3]} 20. axb4 {[%clk 0:01:32.1]} 20... Rxa1 {[%clk
0:01:35.8]} 21. Qxa1 {[%clk 0:01:26.9]} 21... Bxg4 {[%clk 0:01:32.4]} 22. f5
{[%clk 0:01:25.2]} 22... Bxc5 {[%clk 0:01:25.4]} 23. bxc5 {[%clk 0:01:22.1]}
23... Be2 {[%clk 0:01:22.2]} 24. Rf2 {[%clk 0:01:19.7]} 24... Bd3 {[%clk
0:01:20.4]} 25. Qd1 {[%clk 0:01:15.4]} 25... Be4 {[%clk 0:01:19.9]} 26. Qg4
{[%clk 0:01:10.4]} 26... Ra8 {[%clk 0:01:16.8]} 27. h3 {[%clk 0:00:54]} 27...
Qc8 {[%clk 0:01:09.3]} 28. e6 {[%clk 0:00:49.5]} 28... f6 {[%clk 0:01:02.6]} 29.
Qh5 {[%clk 0:00:35.6]} 29... Qe8 {[%clk 0:00:57.9]} 30. Qg4 {[%clk 0:00:28.5]}
30... Qb8 {[%clk 0:00:57.7]} 31. Rf4 {[%clk 0:00:26.1]} 31... Ra1+ {[%clk
0:00:50.3]} 32. Kf2 {[%clk 0:00:23.9]} 32... Ra2+ {[%clk 0:00:50.4]} 33. Kg3
{[%clk 0:00:20.3]} 33... Nxf5+ {[%clk 0:00:44.6]} 34. Nxf5 {[%clk 0:00:12.9]}
34... Rxg2+ {[%clk 0:00:43.9]} 35. Kh4 {[%clk 0:00:12.4]} 35... Rxg4+ {[%clk
0:00:44.4]} 0-1

[Event "Early-Titled-Tuesday-Blitz-March-19-2024"]
[Site "Chess.com"]
[Date "2024.03.19"]
[Round "5"]
[White "visa"]
[Black "Carlos-Godoy"]
[Result "0-1"]
[WhiteElo "2308"]
[BlackElo "2092"]
[TimeControl "180+1"]
[EndTime "8:56:39 PDT"]
[Termination "Carlos-Godoy won by checkmate"]

1. Nf3 {[%clk 0:02:56.1]} 1... Nf6 {[%clk 0:02:58.5]} 2. b3 {[%clk 0:02:55.5]}
2... g6 {[%clk 0:02:57.8]} 3. Bb2 {[%clk 0:02:56.1]} 3... Bg7 {[%clk 0:02:58.1]}
4. g3 {[%clk 0:02:56.5]} 4... O-O {[%clk 0:02:57.9]} 5. Bg2 {[%clk 0:02:57.1]}
5... c5 {[%clk 0:02:56.2]} 6. c4 {[%clk 0:02:56.5]} 6... Nc6 {[%clk 0:02:54.8]}
7. O-O {[%clk 0:02:56.2]} 7... d5 {[%clk 0:02:55.3]} 8. cxd5 {[%clk 0:02:56]}
8... Qxd5 {[%clk 0:02:52.3]} 9. Nc3 {[%clk 0:02:55.3]} 9... Qh5 {[%clk
0:02:52.8]} 10. Na4 {[%clk 0:02:41.8]} 10... b6 {[%clk 0:02:47.2]} 11. d4 {[%clk
0:02:34.2]} 11... cxd4 {[%clk 0:02:41.6]} 12. Nxd4 {[%clk 0:02:31.7]} 12... Nxd4
{[%clk 0:02:41.7]} 13. Bxd4 {[%clk 0:02:21.6]} 13... Rb8 {[%clk 0:02:33.1]} 14.
e3 {[%clk 0:02:13]} 14... Bg4 {[%clk 0:02:30.2]} 15. f3 {[%clk 0:02:06.9]} 15...
Bh3 {[%clk 0:02:30.2]} 16. g4 {[%clk 0:02:06.5]} 16... Qh6 {[%clk 0:02:30.7]}
17. Qe2 {[%clk 0:01:46.1]} 17... Bxg2 {[%clk 0:02:27.4]} 18. Qxg2 {[%clk
0:01:45.1]} 18... Nd5 {[%clk 0:02:14.6]} 19. g5 {[%clk 0:01:35.9]} 19... Qh4
{[%clk 0:02:14.5]} 20. Bxg7 {[%clk 0:01:07.9]} 20... Kxg7 {[%clk 0:02:12.5]} 21.
Rfe1 {[%clk 0:00:52.5]} 21... Rbc8 {[%clk 0:02:01.8]} 22. f4 {[%clk 0:00:47.3]}
22... e6 {[%clk 0:02:00.3]} 23. Nb2 {[%clk 0:00:38.8]} 23... Nb4 {[%clk
0:01:41.3]} 24. Nc4 {[%clk 0:00:36.1]} 24... b5 {[%clk 0:01:41.3]} 25. a3 {[%clk
0:00:29.8]} 25... Nd3 {[%clk 0:01:34.9]} 26. Nd6 {[%clk 0:00:23.4]} 26... Nxe1
{[%clk 0:01:32]} 27. Qb2+ {[%clk 0:00:23.5]} 27... Kg8 {[%clk 0:01:19.3]} 28.
Ne4 {[%clk 0:00:23]} 28... f5 {[%clk 0:01:19]} 29. Nf6+ {[%clk 0:00:21.1]} 29...
Rxf6 {[%clk 0:01:10.2]} 30. Qxf6 {[%clk 0:00:20.6]} 30... Qg4+ {[%clk
0:01:06.4]} 31. Kf2 {[%clk 0:00:18.3]} 31... Nd3+ {[%clk 0:01:05.7]} 32. Kf1
{[%clk 0:00:15.3]} 32... Qf3+ {[%clk 0:01:03.5]} 33. Kg1 {[%clk 0:00:15.1]}
33... Qxe3+ {[%clk 0:00:57.3]} 34. Kh1 {[%clk 0:00:13.8]} 34... Rc1+ {[%clk
0:00:52.6]} 35. Rxc1 {[%clk 0:00:14]} 35... Qxc1+ {[%clk 0:00:52.9]} 36. Kg2
{[%clk 0:00:14.9]} 36... Qd2+ {[%clk 0:00:52.3]} 37. Kg1 {[%clk 0:00:13.2]}
37... Qe1+ {[%clk 0:00:50.7]} 38. Kg2 {[%clk 0:00:13.6]} 38... Qf2+ {[%clk
0:00:48.7]} 39. Kh3 {[%clk 0:00:13.9]} 39... Qf3+ {[%clk 0:00:48]} 40. Kh4
{[%clk 0:00:14]} 40... Qg4# {[%clk 0:00:47.9]} 0-1

[Event "Early-Titled-Tuesday-Blitz-March-19-2024"]
[Site "Chess.com"]
[Date "2024.03.19"]
[Round "5"]
[White "1mbl4"]
[Black "picturesquecheck"]
[Result "1-0"]
[WhiteElo "2620"]
[BlackElo "2430"]
[TimeControl "180+1"]
[EndTime "8:56:41 PDT"]
[Termination "1mbl4 won by resignation"]

1. b3 {[%clk 0:03:00.9]} 1... Nf6 {[%clk 0:02:59.3]} 2. Bb2 {[%clk 0:03:01.3]}
2... g6 {[%clk 0:02:55.7]} 3. Bxf6 {[%clk 0:03:00.4]} 3... exf6 {[%clk
0:02:56.6]} 4. c4 {[%clk 0:03:01.3]} 4... Bg7 {[%clk 0:02:56.2]} 5. g3 {[%clk
0:03:01.5]} 5... O-O {[%clk 0:02:56.2]} 6. Bg2 {[%clk 0:03:01.6]} 6... d6 {[%clk
0:02:54.6]} 7. Nc3 {[%clk 0:03:01.6]} 7... f5 {[%clk 0:02:53.6]} 8. e3 {[%clk
0:03:00.9]} 8... Nd7 {[%clk 0:02:52.4]} 9. Nge2 {[%clk 0:02:58.8]} 9... Re8
{[%clk 0:02:52.8]} 10. h4 {[%clk 0:02:56.2]} 10... h5 {[%clk 0:02:51.6]} 11. O-O
{[%clk 0:02:54.4]} 11... Nf6 {[%clk 0:02:51.6]} 12. d4 {[%clk 0:02:54.5]} 12...
c6 {[%clk 0:02:45.4]} 13. b4 {[%clk 0:02:53.5]} 13... Ne4 {[%clk 0:02:42.2]} 14.
b5 {[%clk 0:02:50.6]} 14... Bd7 {[%clk 0:02:36.9]} 15. bxc6 {[%clk 0:02:33.4]}
15... bxc6 {[%clk 0:02:37.8]} 16. Qc2 {[%clk 0:02:29.1]} 16... Nxc3 {[%clk
0:02:25.3]} 17. Nxc3 {[%clk 0:02:28.5]} 17... Rb8 {[%clk 0:02:25.4]} 18. Rab1
{[%clk 0:02:24.6]} 18... Qa5 {[%clk 0:02:21.8]} 19. Rb3 {[%clk 0:02:09.6]} 19...
Qa6 {[%clk 0:02:07.4]} 20. Rfb1 {[%clk 0:02:04.3]} 20... Rbc8 {[%clk 0:02:01.3]}
21. Rb4 {[%clk 0:02:00.4]} 21... c5 {[%clk 0:01:57.2]} 22. Rb7 {[%clk
0:01:17.9]} 22... cxd4 {[%clk 0:01:56]} 23. Rxd7 {[%clk 0:01:17.6]} 23... dxc3
{[%clk 0:01:47.8]} 24. Bd5 {[%clk 0:01:16.8]} 24... Rf8 {[%clk 0:01:45.7]} 25.
Rbb7 {[%clk 0:01:16.4]} 25... Kh8 {[%clk 0:01:34.7]} 26. Rxf7 {[%clk 0:01:09.9]}
26... Rxf7 {[%clk 0:01:33.4]} 27. Rxf7 {[%clk 0:01:10.8]} 27... Qa3 {[%clk
0:01:19.9]} 28. Rxf5 {[%clk 0:00:45.1]} 28... Qb2 {[%clk 0:01:02]} 29. Rxh5+
{[%clk 0:00:43.7]} 29... gxh5 {[%clk 0:00:56.3]} 30. Qf5 {[%clk 0:00:43.9]}
30... Be5 {[%clk 0:00:06]} 31. Qxc8+ {[%clk 0:00:43.7]} 31... Kg7 {[%clk
0:00:06.4]} 32. Qg8+ {[%clk 0:00:44.1]} 32... Kh6 {[%clk 0:00:06.8]} 33. Be4
{[%clk 0:00:43.9]} 33... Qc1+ {[%clk 0:00:06]} 34. Kg2 {[%clk 0:00:42.3]} 1-0

[Event "Early-Titled-Tuesday-Blitz-March-19-2024"]
[Site "Chess.com"]
[Date "2024.03.19"]
[Round "5"]
[White "BashirliSaadat"]
[Black "Kotlyar_K"]
[Result "1-0"]
[WhiteElo "2374"]
[BlackElo "2621"]
[TimeControl "180+1"]
[EndTime "8:56:42 PDT"]
[Termination "BashirliSaadat won on time"]

1. d4 {[%clk 0:03:00.9]} 1... Nf6 {[%clk 0:02:56.6]} 2. e3 {[%clk 0:03:01.4]}
2... g6 {[%clk 0:02:54.4]} 3. Bd3 {[%clk 0:03:02]} 3... d5 {[%clk 0:02:51.6]} 4.
f4 {[%clk 0:03:02.1]} 4... Bg7 {[%clk 0:02:49.5]} 5. Nf3 {[%clk 0:03:02.4]} 5...
O-O {[%clk 0:02:47.7]} 6. Nbd2 {[%clk 0:03:03]} 6... c5 {[%clk 0:02:45.6]} 7. c3
{[%clk 0:03:02.7]} 7... Nc6 {[%clk 0:02:42.8]} 8. O-O {[%clk 0:03:03.1]} 8...
Bg4 {[%clk 0:01:53.7]} 9. h3 {[%clk 0:03:00.6]} 9... Bf5 {[%clk 0:01:53.6]} 10.
Qc2 {[%clk 0:02:59.4]} 10... e6 {[%clk 0:01:52.5]} 11. Bxf5 {[%clk 0:02:51.9]}
11... exf5 {[%clk 0:01:48.8]} 12. Ne5 {[%clk 0:02:51]} 12... Rc8 {[%clk
0:01:43.2]} 13. Qd3 {[%clk 0:02:39.8]} 13... Nd7 {[%clk 0:01:36.5]} 14. b3
{[%clk 0:02:37.1]} 14... Re8 {[%clk 0:01:34.7]} 15. Bb2 {[%clk 0:02:35.1]} 15...
f6 {[%clk 0:01:34.6]} 16. Nxc6 {[%clk 0:02:32.5]} 16... Rxc6 {[%clk 0:01:27.4]}
17. c4 {[%clk 0:02:33]} 17... Rce6 {[%clk 0:01:15.7]} 18. Rf3 {[%clk 0:02:22.9]}
18... Nb8 {[%clk 0:01:02.5]} 19. Rc1 {[%clk 0:02:18.8]} 19... cxd4 {[%clk
0:01:01.5]} 20. Bxd4 {[%clk 0:02:16.5]} 20... Nc6 {[%clk 0:01:00]} 21. Bb2
{[%clk 0:02:10.6]} 21... dxc4 {[%clk 0:00:58.4]} 22. Qxd8 {[%clk 0:02:07.5]}
22... Rxd8 {[%clk 0:00:58.2]} 23. Nxc4 {[%clk 0:02:05.5]} 23... Nb4 {[%clk
0:00:56.7]} 24. Bd4 {[%clk 0:01:56.4]} 24... b6 {[%clk 0:00:49.1]} 25. a3 {[%clk
0:01:50.6]} 25... Nc6 {[%clk 0:00:47.7]} 26. Bb2 {[%clk 0:01:45.4]} 26... Bf8
{[%clk 0:00:45.3]} 27. b4 {[%clk 0:01:32.5]} 27... Rd3 {[%clk 0:00:44.6]} 28.
Rc3 {[%clk 0:01:30.7]} 28... Rd1+ {[%clk 0:00:33.5]} 29. Rf1 {[%clk 0:01:27.4]}
29... Rxf1+ {[%clk 0:00:32.3]} 30. Kxf1 {[%clk 0:01:28.3]} 30... b5 {[%clk
0:00:29.6]} 31. Nd2 {[%clk 0:01:28]} 31... a5 {[%clk 0:00:29.2]} 32. bxa5 {[%clk
0:01:23.7]} 32... Nxa5 {[%clk 0:00:27.4]} 33. Ke2 {[%clk 0:01:19.6]} 33... b4
{[%clk 0:00:27.3]} 34. axb4 {[%clk 0:01:18.7]} 34... Bxb4 {[%clk 0:00:27.8]} 35.
Rc8+ {[%clk 0:01:18.6]} 35... Kf7 {[%clk 0:00:28.2]} 36. Nc4 {[%clk 0:01:14.6]}
36... Nxc4 {[%clk 0:00:24.7]} 37. Rxc4 {[%clk 0:01:15.5]} 37... Ba5 {[%clk
0:00:24]} 38. Bd4 {[%clk 0:01:12.3]} 38... Ra6 {[%clk 0:00:20.5]} 39. Ra4 {[%clk
0:01:11.6]} 1-0

[Event "Early-Titled-Tuesday-Blitz-March-19-2024"]
[Site "Chess.com"]
[Date "2024.03.19"]
[Round "5"]
[White "Eagle_2019"]
[Black "GlavkonVVS"]
[Result "1-0"]
[WhiteElo "2867"]
[BlackElo "2692"]
[TimeControl "180+1"]
[EndTime "8:56:45 PDT"]
[Termination "Eagle_2019 won by resignation"]

1. d4 {[%clk 0:03:00.9]} 1... Nf6 {[%clk 0:02:59.9]} 2. Bg5 {[%clk 0:02:51.4]}
2... c5 {[%clk 0:02:59.6]} 3. Bxf6 {[%clk 0:02:50]} 3... gxf6 {[%clk 0:02:59.3]}
4. d5 {[%clk 0:02:49.1]} 4... Qb6 {[%clk 0:02:59.2]} 5. Qc1 {[%clk 0:02:48.7]}
5... Bh6 {[%clk 0:02:54.9]} 6. e3 {[%clk 0:02:48]} 6... f5 {[%clk 0:02:55.1]} 7.
c4 {[%clk 0:02:47.2]} 7... d6 {[%clk 0:02:50.9]} 8. Nc3 {[%clk 0:02:45.5]} 8...
Nd7 {[%clk 0:02:50.9]} 9. Nf3 {[%clk 0:02:44.3]} 9... Rg8 {[%clk 0:02:42.5]} 10.
Qc2 {[%clk 0:02:38]} 10... Nf6 {[%clk 0:02:34.6]} 11. g3 {[%clk 0:02:34.6]}
11... e6 {[%clk 0:02:27.5]} 12. Bg2 {[%clk 0:02:25.6]} 12... a6 {[%clk
0:02:25.9]} 13. O-O {[%clk 0:02:24.6]} 13... Ke7 {[%clk 0:02:13]} 14. dxe6
{[%clk 0:02:16.7]} 14... fxe6 {[%clk 0:02:12.6]} 15. e4 {[%clk 0:02:16.1]} 15...
fxe4 {[%clk 0:02:09.9]} 16. Nxe4 {[%clk 0:02:15.5]} 16... Nxe4 {[%clk 0:02:10]}
17. Qxe4 {[%clk 0:02:16.4]} 17... Qxb2 {[%clk 0:02:08]} 18. Qxh7+ {[%clk
0:01:57.7]} 18... Qg7 {[%clk 0:02:07.5]} 19. Qe4 {[%clk 0:01:57.4]} 19... Bd7
{[%clk 0:02:01.6]} 20. Qxb7 {[%clk 0:01:53.8]} 20... Rgb8 {[%clk 0:02:01]} 21.
Qe4 {[%clk 0:01:50.9]} 21... Ra7 {[%clk 0:01:52.3]} 22. Rad1 {[%clk 0:01:48.4]}
22... Rc7 {[%clk 0:01:40.5]} 23. Qh4+ {[%clk 0:01:38.6]} 23... Qf6 {[%clk
0:01:34.3]} 24. Qxf6+ {[%clk 0:01:38.2]} 24... Kxf6 {[%clk 0:01:34.7]} 25. Rxd6
{[%clk 0:01:37.8]} 25... Bc8 {[%clk 0:01:21.9]} 26. Re1 {[%clk 0:01:34.7]} 26...
Rb2 {[%clk 0:01:19]} 27. Ne5 {[%clk 0:01:24.6]} 27... Rxa2 {[%clk 0:01:12.1]}
28. Ng4+ {[%clk 0:01:22.2]} 28... Ke7 {[%clk 0:01:11.8]} 29. Rb6 {[%clk
0:01:16.9]} 29... Bg7 {[%clk 0:01:10.9]} 30. Ne3 {[%clk 0:01:14.2]} 30... Kd8
{[%clk 0:01:05.3]} 31. Bh3 {[%clk 0:01:09.5]} 31... Re7 {[%clk 0:00:56.6]} 32.
Rc6 {[%clk 0:01:01.8]} 32... Rc7 {[%clk 0:00:55.7]} 33. Rd6+ {[%clk 0:00:58.9]}
33... Ke7 {[%clk 0:00:53.8]} 34. Nf5+ {[%clk 0:00:56]} 34... Kf7 {[%clk
0:00:50.8]} 35. Nxg7 {[%clk 0:00:53.6]} 35... Kxg7 {[%clk 0:00:51.1]} 36. Bxe6
{[%clk 0:00:51.1]} 36... Bxe6 {[%clk 0:00:47.6]} 37. Rexe6 {[%clk 0:00:47.1]}
37... a5 {[%clk 0:00:47.5]} 38. Rc6 {[%clk 0:00:44.3]} 38... Rxc6 {[%clk
0:00:45.4]} 39. Rxc6 {[%clk 0:00:43.8]} 39... a4 {[%clk 0:00:46]} 40. Rxc5
{[%clk 0:00:43.4]} 40... a3 {[%clk 0:00:46.6]} 41. Ra5 {[%clk 0:00:43.3]} 41...
Kf6 {[%clk 0:00:46.9]} 42. Kg2 {[%clk 0:00:43.4]} 42... Ke6 {[%clk 0:00:46.9]}
43. h4 {[%clk 0:00:43.5]} 43... Ra1 {[%clk 0:00:46.1]} 44. h5 {[%clk 0:00:43.5]}
44... a2 {[%clk 0:00:46.5]} 45. g4 {[%clk 0:00:41.5]} 45... Kf6 {[%clk
0:00:46.9]} 46. g5+ {[%clk 0:00:41.3]} 46... Kf7 {[%clk 0:00:45.9]} 47. Ra6
{[%clk 0:00:40.9]} 1-0

[Event "Early-Titled-Tuesday-Blitz-March-19-2024"]
[Site "Chess.com"]
[Date "2024.03.19"]
[Round "5"]
[White "DenLaz"]
[Black "platy3"]
[Result "1-0"]
[WhiteElo "3087"]
[BlackElo "2958"]
[TimeControl "180+1"]
[EndTime "8:56:46 PDT"]
[Termination "DenLaz won by checkmate"]

1. d4 {[%clk 0:03:00.9]} 1... Nf6 {[%clk 0:02:59.9]} 2. c4 {[%clk 0:03:00.6]}
2... e6 {[%clk 0:03:00.3]} 3. Nf3 {[%clk 0:03:01.2]} 3... d5 {[%clk 0:03:00.6]}
4. g3 {[%clk 0:03:00.4]} 4... Be7 {[%clk 0:02:54.8]} 5. Bg2 {[%clk 0:03:00.7]}
5... O-O {[%clk 0:02:55.1]} 6. O-O {[%clk 0:03:01.1]} 6... dxc4 {[%clk
0:02:55.4]} 7. Qc2 {[%clk 0:03:01.8]} 7... b5 {[%clk 0:02:52.9]} 8. a4 {[%clk
0:03:01.9]} 8... Bb7 {[%clk 0:02:52.9]} 9. axb5 {[%clk 0:03:01.1]} 9... a6
{[%clk 0:02:53.5]} 10. bxa6 {[%clk 0:02:59.4]} 10... Nxa6 {[%clk 0:02:54.4]} 11.
Qxc4 {[%clk 0:02:59.8]} 11... Bd5 {[%clk 0:02:54.6]} 12. Qc3 {[%clk 0:02:59.6]}
12... c5 {[%clk 0:02:52.1]} 13. Be3 {[%clk 0:03:00]} 13... Ne4 {[%clk 0:02:46]}
14. Qc1 {[%clk 0:02:58.8]} 14... cxd4 {[%clk 0:02:37.2]} 15. Bxd4 {[%clk
0:02:58.1]} 15... Nac5 {[%clk 0:02:34.3]} 16. Rxa8 {[%clk 0:02:57.4]} 16... Qxa8
{[%clk 0:02:34.1]} 17. Nc3 {[%clk 0:02:58.1]} 17... Nxc3 {[%clk 0:02:02.4]} 18.
Bxc3 {[%clk 0:02:46.1]} 18... Rc8 {[%clk 0:02:00.6]} 19. Qe3 {[%clk 0:02:45.9]}
19... Ne4 {[%clk 0:01:55.8]} 20. Bd4 {[%clk 0:02:46]} 20... Bf6 {[%clk
0:01:51.8]} 21. Bxf6 {[%clk 0:02:37.4]} 21... Nxf6 {[%clk 0:01:52.7]} 22. Rc1
{[%clk 0:02:37.5]} 22... Rb8 {[%clk 0:01:50.4]} 23. Qd4 {[%clk 0:02:37]} 23...
Qb7 {[%clk 0:01:38.1]} 24. Ne1 {[%clk 0:02:35.6]} 24... Bxg2 {[%clk 0:01:33.9]}
25. Nxg2 {[%clk 0:02:36.5]} 25... h6 {[%clk 0:01:33.1]} 26. Rc2 {[%clk
0:02:34.3]} 26... Qb3 {[%clk 0:01:24.1]} 27. Ne1 {[%clk 0:02:26.6]} 27... Qb5
{[%clk 0:01:11.3]} 28. Kg2 {[%clk 0:02:22.8]} 28... Qf5 {[%clk 0:01:06]} 29. Qd3
{[%clk 0:02:19.6]} 29... Qe5 {[%clk 0:01:04.7]} 30. Nf3 {[%clk 0:02:18.4]} 30...
Qa5 {[%clk 0:01:01.5]} 31. Qd4 {[%clk 0:02:04.3]} 31... Nd5 {[%clk 0:00:53.6]}
32. Ne5 {[%clk 0:01:49.4]} 32... Qa6 {[%clk 0:00:35.7]} 33. e4 {[%clk
0:01:39.8]} 33... Nf6 {[%clk 0:00:34.5]} 34. Nc6 {[%clk 0:01:35.5]} 34... Re8
{[%clk 0:00:31.1]} 35. b4 {[%clk 0:01:32.6]} 35... Qa4 {[%clk 0:00:30]} 36. Qc4
{[%clk 0:01:31.1]} 36... Nd7 {[%clk 0:00:21.1]} 37. b5 {[%clk 0:01:30.6]} 37...
Qa3 {[%clk 0:00:16.2]} 38. Qd4 {[%clk 0:01:29.4]} 38... Nb8 {[%clk 0:00:09.2]}
39. Ne5 {[%clk 0:01:23.9]} 39... Qa5 {[%clk 0:00:05.2]} 40. b6 {[%clk
0:01:18.9]} 40... f6 {[%clk 0:00:05.2]} 41. Ng4 {[%clk 0:01:16.4]} 41... Qg5
{[%clk 0:00:02.4]} 42. Ne3 {[%clk 0:01:12.6]} 42... Qb5 {[%clk 0:00:02.5]} 43.
Rc7 {[%clk 0:01:10]} 43... Rf8 {[%clk 0:00:01.3]} 44. b7 {[%clk 0:01:07.5]}
44... Nc6 {[%clk 0:00:01.1]} 45. Qd7 {[%clk 0:01:07.3]} 45... Ne5 {[%clk
0:00:01.2]} 46. Qxg7# {[%clk 0:01:06.9]} 1-0

[Event "Early-Titled-Tuesday-Blitz-March-19-2024"]
[Site "Chess.com"]
[Date "2024.03.19"]
[Round "5"]
[White "maciek_92"]
[Black "GothamChess"]
[Result "1-0"]
[WhiteElo "2897"]
[BlackElo "2702"]
[TimeControl "180+1"]
[EndTime "8:56:46 PDT"]
[Termination "maciek_92 won on time"]

1. c4 {[%clk 0:03:00.9]} 1... g6 {[%clk 0:02:49.7]} 2. Nc3 {[%clk 0:03:01]} 2...
Bg7 {[%clk 0:02:50.4]} 3. g3 {[%clk 0:03:00.7]} 3... d6 {[%clk 0:02:50.7]} 4.
Bg2 {[%clk 0:03:01.1]} 4... Nc6 {[%clk 0:02:51.5]} 5. e3 {[%clk 0:03:01.3]} 5...
Bd7 {[%clk 0:02:51]} 6. d4 {[%clk 0:03:01.2]} 6... e5 {[%clk 0:02:48.4]} 7. Nge2
{[%clk 0:03:00.9]} 7... h5 {[%clk 0:02:48.5]} 8. h3 {[%clk 0:03:00.6]} 8... h4
{[%clk 0:02:48.2]} 9. g4 {[%clk 0:03:00.4]} 9... f5 {[%clk 0:02:48.8]} 10. gxf5
{[%clk 0:02:59]} 10... gxf5 {[%clk 0:02:40.4]} 11. dxe5 {[%clk 0:02:50]} 11...
Nxe5 {[%clk 0:02:34.5]} 12. Nf4 {[%clk 0:02:47.6]} 12... Bc6 {[%clk 0:02:23.2]}
13. Ncd5 {[%clk 0:02:45.2]} 13... Kf7 {[%clk 0:01:59.5]} 14. Qb3 {[%clk
0:02:35]} 14... a5 {[%clk 0:01:51]} 15. a4 {[%clk 0:02:30]} 15... Qd7 {[%clk
0:01:32.7]} 16. c5 {[%clk 0:02:29.2]} 16... Kf8 {[%clk 0:01:29.1]} 17. Nxc7
{[%clk 0:02:27.3]} 17... Bxg2 {[%clk 0:01:18.8]} 18. Nce6+ {[%clk 0:02:25.5]}
18... Ke7 {[%clk 0:01:11.2]} 19. Nxg2 {[%clk 0:02:15.2]} 19... Qxe6 {[%clk
0:00:45.8]} 20. Qxb7+ {[%clk 0:02:14.7]} 20... Kf6 {[%clk 0:00:32.8]} 21. Qxa8
{[%clk 0:02:10.5]} 21... Qc4 {[%clk 0:00:30.8]} 22. Nf4 {[%clk 0:01:52]} 22...
Ne7 {[%clk 0:00:30.9]} 23. Qg2 {[%clk 0:01:52.4]} 23... Bh6 {[%clk 0:00:23]} 24.
Bd2 {[%clk 0:00:38.6]} 24... Bxf4 {[%clk 0:00:14]} 25. Bc3 {[%clk 0:00:38.3]}
25... Ke6 {[%clk 0:00:05.4]} 26. exf4 {[%clk 0:00:34.1]} 26... Nd3+ {[%clk
0:00:05.1]} 27. Kd2 {[%clk 0:00:32.8]} 27... Nxf4 {[%clk 0:00:03]} 28. Rhe1+
{[%clk 0:00:27.2]} 28... Kf7 {[%clk 0:00:01.3]} 29. Qg7+ {[%clk 0:00:27.3]} 1-0